[Event "*** Titled Tuesday Blitz"]
[Site "Chess.com"]
[Date "2020.10.27"]
[Round "6"]
[White "IMprovidence"]
[Black "HrvojeZagreb"]
[Result "1-0"]
[WhiteElo "2437"]
[BlackElo "2225"]
[TimeControl "180+1"]
[EndTime "11:05:09 PDT"]
[Termination "IMprovidence won by resignation"]

1. c4 {[%clk 0:03:00.9]} 1... f5 {[%clk 0:02:59.5]} 2. g3 {[%clk 0:03:00.6]}
2... Nf6 {[%clk 0:02:58.9]} 3. Bg2 {[%clk 0:03:01.1]} 3... e5 {[%clk 0:02:58.6]}
4. a3 {[%clk 0:03:00.3]} 4... a5 {[%clk 0:02:58]} 5. Nc3 {[%clk 0:03:00.3]} 5...
d6 {[%clk 0:02:56.8]} 6. Rb1 {[%clk 0:02:57.3]} 6... Be7 {[%clk 0:02:54.1]} 7.
b4 {[%clk 0:02:57.1]} 7... axb4 {[%clk 0:02:55]} 8. axb4 {[%clk 0:02:58]} 8...
O-O {[%clk 0:02:54.8]} 9. d3 {[%clk 0:02:58.2]} 9... Qe8 {[%clk 0:02:52.7]} 10.
e3 {[%clk 0:02:57.5]} 10... Nc6 {[%clk 0:02:33.5]} 11. b5 {[%clk 0:02:56.9]}
11... Nd8 {[%clk 0:02:32.5]} 12. Bb2 {[%clk 0:02:56.7]} 12... f4 {[%clk
0:02:27.4]} 13. exf4 {[%clk 0:02:52.4]} 13... exf4 {[%clk 0:02:28.3]} 14. Nge2
{[%clk 0:02:51.9]} 14... f3 {[%clk 0:02:25.9]} 15. Bxf3 {[%clk 0:02:51.5]} 15...
Bh3 {[%clk 0:02:25.2]} 16. Nf4 {[%clk 0:02:50]} 16... Bf5 {[%clk 0:02:13.2]} 17.
O-O {[%clk 0:02:48.6]} 17... g5 {[%clk 0:02:10.3]} 18. Nfd5 {[%clk 0:02:47.4]}
18... Ne6 {[%clk 0:01:54.6]} 19. Re1 {[%clk 0:02:38.9]} 19... Bd8 {[%clk
0:01:47.8]} 20. Nxf6+ {[%clk 0:02:34.3]} 20... Rxf6 {[%clk 0:01:34.9]} 21. Bxb7
{[%clk 0:02:29.7]} 21... Ra7 {[%clk 0:01:19.4]} 22. Bg2 {[%clk 0:02:13.2]} 22...
Qg6 {[%clk 0:01:12.3]} 23. Ne4 {[%clk 0:02:11.8]} 23... Rf8 {[%clk 0:01:05.9]}
24. g4 {[%clk 0:02:10.5]} 24... Bxe4 {[%clk 0:01:01.6]} 25. Bxe4 {[%clk
0:02:10.1]} 25... Qf7 {[%clk 0:01:01.3]} 26. Bd5 {[%clk 0:02:10.2]} 26... Qxf2+
{[%clk 0:00:34.5]} 27. Kh1 {[%clk 0:02:08.4]} 27... Re8 {[%clk 0:00:25.9]} 28.
Rxe6 {[%clk 0:02:00.2]} 28... Rxe6 {[%clk 0:00:23.3]} 29. Bxe6+ {[%clk
0:02:01.1]} 29... Kf8 {[%clk 0:00:23.6]} 30. Qf1 {[%clk 0:01:58.3]} 30... Qxf1+
{[%clk 0:00:23.6]} 31. Rxf1+ {[%clk 0:01:57.5]} 31... Ke7 {[%clk 0:00:24.2]} 32.
Bd5 {[%clk 0:01:55.9]} 32... Ra2 {[%clk 0:00:24.1]} 33. Bf6+ {[%clk 0:01:48.5]}
33... Ke8 {[%clk 0:00:24.2]} 34. Bc6+ {[%clk 0:01:47.2]} 1-0

[Event "*** Titled Tuesday Blitz"]
[Site "Chess.com"]
[Date "2020.10.27"]
[Round "6"]
[White "oogee"]
[Black "MF1966Idrisov"]
[Result "0-1"]
[WhiteElo "2176"]
[BlackElo "2333"]
[TimeControl "180+1"]
[EndTime "11:05:14 PDT"]
[Termination "MF1966Idrisov won by checkmate"]

1. d4 {[%clk 0:02:16.6]} 1... d6 {[%clk 0:02:58.4]} 2. Nf3 {[%clk 0:02:13.2]}
2... f5 {[%clk 0:02:58.4]} 3. g3 {[%clk 0:02:08.7]} 3... e6 {[%clk 0:02:58]} 4.
Bg2 {[%clk 0:02:09.1]} 4... Nf6 {[%clk 0:02:57.8]} 5. O-O {[%clk 0:02:09.6]}
5... Be7 {[%clk 0:02:58.1]} 6. b3 {[%clk 0:02:10.1]} 6... O-O {[%clk 0:02:58.1]}
7. Bb2 {[%clk 0:02:10.6]} 7... Ne4 {[%clk 0:02:58.5]} 8. Nfd2 {[%clk 0:02:09.5]}
8... d5 {[%clk 0:02:55]} 9. f3 {[%clk 0:02:09]} 9... Nxd2 {[%clk 0:02:53.4]} 10.
Qxd2 {[%clk 0:02:09.3]} 10... c5 {[%clk 0:02:53.8]} 11. c3 {[%clk 0:02:02.9]}
11... Nc6 {[%clk 0:02:53.3]} 12. Na3 {[%clk 0:02:01.4]} 12... b6 {[%clk
0:02:48.5]} 13. e4 {[%clk 0:01:58]} 13... cxd4 {[%clk 0:02:44.7]} 14. exd5
{[%clk 0:01:54.1]} 14... dxc3 {[%clk 0:02:36]} 15. Qxc3 {[%clk 0:01:53.8]} 15...
Bf6 {[%clk 0:02:33.1]} 16. Qxc6 {[%clk 0:01:53.9]} 16... Bxb2 {[%clk 0:02:31.5]}
17. Qxa8 {[%clk 0:01:53.6]} 17... Bxa3 {[%clk 0:02:17.8]} 18. Rad1 {[%clk
0:01:47.9]} 18... Bc5+ {[%clk 0:01:53.1]} 19. Kh1 {[%clk 0:01:47]} 19... e5
{[%clk 0:01:53.3]} 20. d6 {[%clk 0:01:40.3]} 20... Be6 {[%clk 0:01:45.9]} 21.
Qxa7 {[%clk 0:01:35.4]} 21... f4 {[%clk 0:01:45.5]} 22. Rfe1 {[%clk 0:01:29.3]}
22... fxg3 {[%clk 0:01:43.9]} 23. hxg3 {[%clk 0:01:24.6]} 23... Qg5 {[%clk
0:01:42.8]} 24. Qe7 {[%clk 0:00:49.2]} 24... Rf6 {[%clk 0:01:04.9]} 25. Qe8+
{[%clk 0:00:48.8]} 25... Rf8 {[%clk 0:01:03.3]} 26. Qxe6+ {[%clk 0:00:49.7]}
26... Kh8 {[%clk 0:01:00.6]} 27. Qxe5 {[%clk 0:00:46.3]} 27... Qh6+ {[%clk
0:00:57.2]} 28. Bh3 {[%clk 0:00:45.9]} 28... Qxh3# {[%clk 0:00:57]} 0-1

[Event "*** Titled Tuesday Blitz"]
[Site "Chess.com"]
[Date "2020.10.27"]
[Round "6"]
[White "redbaron8888"]
[Black "GoltsevDmitry2000"]
[Result "1-0"]
[WhiteElo "2519"]
[BlackElo "2697"]
[TimeControl "180+1"]
[EndTime "11:05:20 PDT"]
[Termination "redbaron8888 won by checkmate"]

1. e4 {[%clk 0:03:00.9]} 1... c5 {[%clk 0:02:59.9]} 2. Nf3 {[%clk 0:03:00.6]}
2... e6 {[%clk 0:02:57.9]} 3. d4 {[%clk 0:02:59.8]} 3... cxd4 {[%clk 0:02:58.8]}
4. Nxd4 {[%clk 0:03:00.7]} 4... a6 {[%clk 0:02:58.2]} 5. Nc3 {[%clk 0:02:57.1]}
5... Qc7 {[%clk 0:02:57.8]} 6. Be2 {[%clk 0:02:56.5]} 6... Nf6 {[%clk 0:02:57]}
7. O-O {[%clk 0:02:55.3]} 7... b5 {[%clk 0:02:55.9]} 8. Bf3 {[%clk 0:02:38.8]}
8... Bb7 {[%clk 0:02:54.8]} 9. e5 {[%clk 0:02:35.5]} 9... Ng8 {[%clk 0:02:50.1]}
10. Re1 {[%clk 0:02:32]} 10... Ne7 {[%clk 0:02:44.3]} 11. Bxb7 {[%clk
0:02:24.2]} 11... Qxb7 {[%clk 0:02:45.2]} 12. Ne4 {[%clk 0:02:24.9]} 12... Ng6
{[%clk 0:02:41]} 13. Qf3 {[%clk 0:01:52.5]} 13... Nc6 {[%clk 0:02:37.4]} 14. Ng5
{[%clk 0:01:48]} 14... Nd8 {[%clk 0:02:27.7]} 15. Qg3 {[%clk 0:01:38]} 15... Bc5
{[%clk 0:02:25]} 16. Be3 {[%clk 0:01:30.9]} 16... Rc8 {[%clk 0:02:23.1]} 17. c3
{[%clk 0:01:27.6]} 17... O-O {[%clk 0:02:18.8]} 18. Rad1 {[%clk 0:01:22.9]}
18... b4 {[%clk 0:02:15.1]} 19. h4 {[%clk 0:01:21.4]} 19... bxc3 {[%clk
0:02:10.7]} 20. bxc3 {[%clk 0:01:22.3]} 20... Ne7 {[%clk 0:01:57]} 21. h5 {[%clk
0:01:17.5]} 21... Bxd4 {[%clk 0:01:57]} 22. Bxd4 {[%clk 0:01:13.1]} 22... Nf5
{[%clk 0:01:56.1]} 23. Qf4 {[%clk 0:01:11.2]} 23... h6 {[%clk 0:01:54.8]} 24.
Ne4 {[%clk 0:01:11]} 24... Nc6 {[%clk 0:01:54.5]} 25. Rd3 {[%clk 0:01:09.2]}
25... Ncxd4 {[%clk 0:01:50.6]} 26. cxd4 {[%clk 0:01:10.1]} 26... Rc2 {[%clk
0:01:41.1]} 27. g4 {[%clk 0:01:09]} 27... Ne7 {[%clk 0:01:38.8]} 28. g5 {[%clk
0:01:08.9]} 28... hxg5 {[%clk 0:01:10.5]} 29. Qxg5 {[%clk 0:01:09.8]} 29... Nf5
{[%clk 0:01:07]} 30. h6 {[%clk 0:01:04.5]} 30... Nxh6 {[%clk 0:01:06.1]} 31. Rg3
{[%clk 0:01:03.2]} 31... Nf5 {[%clk 0:01:03.5]} 32. Nf6+ {[%clk 0:00:59]} 32...
Kh8 {[%clk 0:01:01.2]} 33. Rh3+ {[%clk 0:00:58.1]} 33... Nh6 {[%clk 0:01:00.2]}
34. Rxh6+ {[%clk 0:00:57.6]} 34... gxh6 {[%clk 0:01:01.1]} 35. Qxh6# {[%clk
0:00:58.3]} 1-0

[Event "*** Titled Tuesday Blitz"]
[Site "Chess.com"]
[Date "2020.10.27"]
[Round "6"]
[White "CakeinSpace2002"]
[Black "Natalya_Buksa"]
[Result "0-1"]
[WhiteElo "2345"]
[BlackElo "2541"]
[TimeControl "180+1"]
[EndTime "11:05:25 PDT"]
[Termination "Natalya_Buksa won by resignation"]

1. c4 {[%clk 0:03:00]} 1... e6 {[%clk 0:02:59]} 2. Nc3 {[%clk 0:02:59.9]} 2...
d5 {[%clk 0:02:59.5]} 3. d4 {[%clk 0:02:58.9]} 3... Be7 {[%clk 0:02:59.7]} 4.
cxd5 {[%clk 0:02:54.9]} 4... exd5 {[%clk 0:03:00.6]} 5. Bf4 {[%clk 0:02:55.4]}
5... Nf6 {[%clk 0:03:00.9]} 6. e3 {[%clk 0:02:55.3]} 6... Bf5 {[%clk 0:02:59.3]}
7. Bd3 {[%clk 0:02:54.6]} 7... Bxd3 {[%clk 0:02:58.5]} 8. Qxd3 {[%clk
0:02:55.5]} 8... c6 {[%clk 0:02:58.9]} 9. Nf3 {[%clk 0:02:54.9]} 9... O-O {[%clk
0:02:59.5]} 10. O-O {[%clk 0:02:54.5]} 10... Bd6 {[%clk 0:03:00.1]} 11. Bg5
{[%clk 0:02:53.3]} 11... Nbd7 {[%clk 0:02:59.4]} 12. Rab1 {[%clk 0:02:52.1]}
12... Qe8 {[%clk 0:02:46.7]} 13. b4 {[%clk 0:02:46.5]} 13... a6 {[%clk
0:02:46.7]} 14. a4 {[%clk 0:02:46]} 14... Ne4 {[%clk 0:02:47]} 15. Rfc1 {[%clk
0:02:37.2]} 15... f5 {[%clk 0:02:43.3]} 16. Bf4 {[%clk 0:02:31.7]} 16... Qe7
{[%clk 0:02:33.7]} 17. b5 {[%clk 0:02:17.3]} 17... axb5 {[%clk 0:02:29.2]} 18.
axb5 {[%clk 0:02:18.2]} 18... Bxf4 {[%clk 0:02:29.6]} 19. exf4 {[%clk
0:02:17.9]} 19... Ra3 {[%clk 0:02:30.2]} 20. bxc6 {[%clk 0:02:08.2]} 20... bxc6
{[%clk 0:02:31.1]} 21. Rb7 {[%clk 0:01:46.7]} 21... Rb8 {[%clk 0:02:30.2]} 22.
Rxb8+ {[%clk 0:01:30]} 22... Nxb8 {[%clk 0:02:30]} 23. Nxd5 {[%clk 0:01:14.1]}
23... cxd5 {[%clk 0:02:25.5]} 24. Rc8+ {[%clk 0:01:14.1]} 24... Kf7 {[%clk
0:02:25.9]} 25. Ne5+ {[%clk 0:01:14.1]} 25... Kf6 {[%clk 0:02:26.4]} 26. Qb1
{[%clk 0:01:05.2]} 26... Qb4 {[%clk 0:01:52.3]} 27. Qc1 {[%clk 0:00:50.5]} 27...
Rb3 {[%clk 0:01:38.6]} 28. Rc6+ {[%clk 0:00:37.6]} 28... Nxc6 {[%clk 0:01:36.9]}
29. Qxc6+ {[%clk 0:00:38.5]} 29... Qd6 {[%clk 0:01:33.3]} 30. Qc1 {[%clk
0:00:37]} 30... Nd2 {[%clk 0:01:25.3]} 31. g4 {[%clk 0:00:33.5]} 31... Rb1
{[%clk 0:01:23.7]} 32. g5+ {[%clk 0:00:33.2]} 32... Ke6 {[%clk 0:01:24.3]} 0-1

[Event "*** Titled Tuesday Blitz"]
[Site "Chess.com"]
[Date "2020.10.27"]
[Round "6"]
[White "Kaliopa"]
[Black "davigator"]
[Result "1-0"]
[WhiteElo "2221"]
[BlackElo "2361"]
[TimeControl "180+1"]
[EndTime "11:05:28 PDT"]
[Termination "Kaliopa won by resignation"]

1. d4 {[%clk 0:03:00.9]} 1... Nf6 {[%clk 0:02:58.7]} 2. c4 {[%clk 0:03:01]} 2...
e6 {[%clk 0:02:56.5]} 3. Nc3 {[%clk 0:03:00.6]} 3... Bb4 {[%clk 0:02:55.3]} 4.
e3 {[%clk 0:03:00.9]} 4... O-O {[%clk 0:02:50.4]} 5. Bd3 {[%clk 0:03:00.8]} 5...
d5 {[%clk 0:02:49.3]} 6. cxd5 {[%clk 0:03:00.3]} 6... exd5 {[%clk 0:02:48.8]} 7.
Ne2 {[%clk 0:03:01]} 7... Re8 {[%clk 0:02:47.7]} 8. Bd2 {[%clk 0:03:01]} 8... c6
{[%clk 0:02:47.2]} 9. O-O {[%clk 0:02:58.6]} 9... Nbd7 {[%clk 0:02:44.6]} 10.
Rc1 {[%clk 0:02:48.1]} 10... Bd6 {[%clk 0:02:42.6]} 11. Ng3 {[%clk 0:02:44.8]}
11... Nf8 {[%clk 0:02:34.4]} 12. f3 {[%clk 0:02:44.8]} 12... a5 {[%clk
0:02:29.2]} 13. Nce2 {[%clk 0:02:29.2]} 13... a4 {[%clk 0:02:27.2]} 14. Qc2
{[%clk 0:02:19]} 14... g6 {[%clk 0:02:22]} 15. e4 {[%clk 0:02:11.4]} 15... Be7
{[%clk 0:02:00.4]} 16. e5 {[%clk 0:02:10.1]} 16... N6d7 {[%clk 0:02:00.2]} 17.
f4 {[%clk 0:02:09]} 17... f5 {[%clk 0:01:57.9]} 18. exf6 {[%clk 0:02:04.9]}
18... Nxf6 {[%clk 0:01:57]} 19. f5 {[%clk 0:02:04]} 19... Kg7 {[%clk 0:01:39.6]}
20. fxg6 {[%clk 0:02:02.8]} 20... hxg6 {[%clk 0:01:39.3]} 21. Nf4 {[%clk
0:01:56.9]} 21... Ne4 {[%clk 0:01:39.5]} 22. Nxe4 {[%clk 0:01:45.2]} 22... dxe4
{[%clk 0:01:39.5]} 23. Bxe4 {[%clk 0:01:44.6]} 23... Qxd4+ {[%clk 0:01:39.5]}
24. Kh1 {[%clk 0:01:44.2]} 24... Bf6 {[%clk 0:01:26.9]} 25. Bc3 {[%clk
0:01:08.5]} 25... Qxe4 {[%clk 0:01:26.1]} 26. Bxf6+ {[%clk 0:01:08.1]} 26...
Kxf6 {[%clk 0:01:15.7]} 27. Ne6+ {[%clk 0:01:05.9]} 27... Ke5 {[%clk 0:01:15.6]}
28. Rce1 {[%clk 0:00:57.3]} 28... Qxe1 {[%clk 0:01:10.1]} 29. Rxe1+ {[%clk
0:00:56.8]} 29... Kf6 {[%clk 0:01:07.8]} 30. Qf2+ {[%clk 0:00:44.2]} 30... Ke7
{[%clk 0:01:03]} 31. Nxf8+ {[%clk 0:00:41.6]} 31... Kd8 {[%clk 0:01:02.9]} 32.
Qf6+ {[%clk 0:00:40]} 32... Kc7 {[%clk 0:01:02.9]} 33. Rxe8 {[%clk 0:00:38.9]}
1-0

[Event "*** Titled Tuesday Blitz"]
[Site "Chess.com"]
[Date "2020.10.27"]
[Round "6"]
[White "Snegokhod"]
[Black "SamuelGhimpu2003"]
[Result "1-0"]
[WhiteElo "2453"]
[BlackElo "2605"]
[TimeControl "180+1"]
[EndTime "11:05:32 PDT"]
[Termination "Snegokhod won by resignation"]

1. e4 {[%clk 0:03:00.8]} 1... e6 {[%clk 0:03:00.3]} 2. d3 {[%clk 0:03:00.1]}
2... d5 {[%clk 0:03:01.2]} 3. Nd2 {[%clk 0:03:00.1]} 3... Nf6 {[%clk 0:03:01.8]}
4. Ngf3 {[%clk 0:03:00.2]} 4... Nc6 {[%clk 0:03:02.4]} 5. g3 {[%clk 0:02:59]}
5... dxe4 {[%clk 0:03:01]} 6. dxe4 {[%clk 0:02:59.4]} 6... Bc5 {[%clk
0:03:01.9]} 7. Bg2 {[%clk 0:02:58.8]} 7... e5 {[%clk 0:02:58.4]} 8. O-O {[%clk
0:02:58.6]} 8... O-O {[%clk 0:02:58.7]} 9. Qe2 {[%clk 0:02:56.3]} 9... a5 {[%clk
0:02:47]} 10. Nb3 {[%clk 0:02:55.9]} 10... Bd6 {[%clk 0:02:46.1]} 11. Bg5 {[%clk
0:02:42]} 11... b6 {[%clk 0:02:40.8]} 12. Rfd1 {[%clk 0:02:40.8]} 12... h6
{[%clk 0:02:40.2]} 13. Bh4 {[%clk 0:02:31]} 13... Qe7 {[%clk 0:02:25.7]} 14. h3
{[%clk 0:02:22.4]} 14... g5 {[%clk 0:02:07.9]} 15. Nxg5 {[%clk 0:02:21.8]} 15...
hxg5 {[%clk 0:02:08.8]} 16. Bxg5 {[%clk 0:02:22.2]} 16... Qe6 {[%clk 0:02:09.5]}
17. f4 {[%clk 0:02:00.3]} 17... exf4 {[%clk 0:02:01.2]} 18. gxf4 {[%clk
0:01:58.5]} 18... Ba6 {[%clk 0:01:41.1]} 19. Qf3 {[%clk 0:01:53.1]} 19... Nh7
{[%clk 0:01:37.6]} 20. Bh4 {[%clk 0:01:51.6]} 20... a4 {[%clk 0:01:29.3]} 21. e5
{[%clk 0:01:45.3]} 21... axb3 {[%clk 0:01:21.8]} 22. exd6 {[%clk 0:01:45.3]}
22... bxc2 {[%clk 0:01:16.9]} 23. Re1 {[%clk 0:01:40.2]} 23... Qxd6 {[%clk
0:00:12.2]} 24. Qxc6 {[%clk 0:01:36]} 24... Qxf4 {[%clk 0:00:12.5]} 25. Re4
{[%clk 0:01:20.2]} 25... Qd2 {[%clk 0:00:10.4]} 26. Rg4+ {[%clk 0:01:16.4]}
26... Kh8 {[%clk 0:00:10.9]} 27. Bf6+ {[%clk 0:01:16.3]} 1-0

[Event "*** Titled Tuesday Blitz"]
[Site "Chess.com"]
[Date "2020.10.27"]
[Round "6"]
[White "JoachimMouhamad"]
[Black "Iskusnyh"]
[Result "1/2-1/2"]
[WhiteElo "2316"]
[BlackElo "2556"]
[TimeControl "180+1"]
[EndTime "11:05:32 PDT"]
[Termination "Game drawn by repetition"]

1. e4 {[%clk 0:03:00.9]} 1... e6 {[%clk 0:02:59.4]} 2. d4 {[%clk 0:03:00]} 2...
d5 {[%clk 0:02:59.7]} 3. Nc3 {[%clk 0:02:59.9]} 3... Nf6 {[%clk 0:02:58.4]} 4.
e5 {[%clk 0:02:59.3]} 4... Nfd7 {[%clk 0:02:58.1]} 5. f4 {[%clk 0:02:59.7]} 5...
c5 {[%clk 0:02:58.7]} 6. Nf3 {[%clk 0:02:59.8]} 6... Nc6 {[%clk 0:02:58.8]} 7.
Be3 {[%clk 0:03:00.5]} 7... Rb8 {[%clk 0:02:58.9]} 8. Qd2 {[%clk 0:02:52.5]}
8... Qa5 {[%clk 0:02:58.1]} 9. Be2 {[%clk 0:02:36.7]} 9... b5 {[%clk 0:02:57.4]}
10. O-O {[%clk 0:02:34.1]} 10... b4 {[%clk 0:02:56.8]} 11. Nd1 {[%clk
0:02:33.3]} 11... cxd4 {[%clk 0:02:35.3]} 12. Nxd4 {[%clk 0:02:32]} 12... Nxd4
{[%clk 0:02:34.8]} 13. Bxd4 {[%clk 0:02:31.5]} 13... Bc5 {[%clk 0:02:35.3]} 14.
Bxc5 {[%clk 0:02:09.6]} 14... Qxc5+ {[%clk 0:02:32.3]} 15. Kh1 {[%clk
0:02:05.3]} 15... O-O {[%clk 0:02:26.5]} 16. Nf2 {[%clk 0:01:49.6]} 16... a5
{[%clk 0:02:20.9]} 17. Bd3 {[%clk 0:01:38.7]} 17... Qb6 {[%clk 0:02:13.9]} 18.
Qe2 {[%clk 0:01:31.5]} 18... Nc5 {[%clk 0:02:09.2]} 19. Bxh7+ {[%clk 0:01:26.5]}
19... Kxh7 {[%clk 0:02:07.5]} 20. Qh5+ {[%clk 0:01:27.1]} 20... Kg8 {[%clk
0:02:07.2]} 21. Ng4 {[%clk 0:01:25.8]} 21... Ne4 {[%clk 0:01:12.9]} 22. Rae1
{[%clk 0:01:21.3]} 22... f5 {[%clk 0:01:01.7]} 23. Nh6+ {[%clk 0:01:16.2]} 23...
gxh6 {[%clk 0:00:46.3]} 24. Qg6+ {[%clk 0:01:16]} 24... Kh8 {[%clk 0:00:46.2]}
25. Qxh6+ {[%clk 0:01:16.5]} 25... Kg8 {[%clk 0:00:46.4]} 26. Qg6+ {[%clk
0:01:14.1]} 26... Kh8 {[%clk 0:00:46.3]} 27. Rf3 {[%clk 0:00:52.3]} 27... Nf2+
{[%clk 0:00:40.7]} 28. Rxf2 {[%clk 0:00:52.6]} 28... Qxf2 {[%clk 0:00:40.6]} 29.
Qh6+ {[%clk 0:00:52.7]} 29... Kg8 {[%clk 0:00:41.2]} 30. Qg6+ {[%clk 0:00:53.6]}
30... Kh8 {[%clk 0:00:41.7]} 31. Qh6+ {[%clk 0:00:54.5]} 31... Kg8 {[%clk
0:00:42.3]} 32. Qg6+ {[%clk 0:00:55.1]} 32... Kh8 {[%clk 0:00:43]} 1/2-1/2

[Event "*** Titled Tuesday Blitz"]
[Site "Chess.com"]
[Date "2020.10.27"]
[Round "6"]
[White "Lenyas66"]
[Black "AndreyNeves"]
[Result "1-0"]
[WhiteElo "2467"]
[BlackElo "2265"]
[TimeControl "180+1"]
[EndTime "11:05:33 PDT"]
[Termination "Lenyas66 won on time"]

1. e4 {[%clk 0:03:00.9]} 1... c5 {[%clk 0:01:28]} 2. Nf3 {[%clk 0:03:00.2]} 2...
Nc6 {[%clk 0:01:25.5]} 3. Bb5 {[%clk 0:03:00.2]} 3... g6 {[%clk 0:01:22.9]} 4.
Bxc6 {[%clk 0:02:56.2]} 4... dxc6 {[%clk 0:01:22]} 5. O-O {[%clk 0:02:55.7]}
5... Bg7 {[%clk 0:01:21.5]} 6. Re1 {[%clk 0:02:55]} 6... e5 {[%clk 0:01:21.2]}
7. a3 {[%clk 0:02:45.5]} 7... a5 {[%clk 0:01:17.3]} 8. d3 {[%clk 0:02:40]} 8...
b6 {[%clk 0:01:17]} 9. Be3 {[%clk 0:02:35.2]} 9... f6 {[%clk 0:01:16.5]} 10.
Nbd2 {[%clk 0:02:33.1]} 10... Nh6 {[%clk 0:01:16.1]} 11. b4 {[%clk 0:02:32.7]}
11... axb4 {[%clk 0:01:02.1]} 12. axb4 {[%clk 0:02:31.6]} 12... Rxa1 {[%clk
0:01:01.6]} 13. Qxa1 {[%clk 0:02:31.2]} 13... cxb4 {[%clk 0:00:50.1]} 14. Qa4
{[%clk 0:02:24.3]} 14... Bd7 {[%clk 0:00:42.2]} 15. Qxb4 {[%clk 0:02:24.1]}
15... c5 {[%clk 0:00:40.7]} 16. Qb3 {[%clk 0:02:24.2]} 16... Ng4 {[%clk
0:00:34.1]} 17. Nc4 {[%clk 0:02:24]} 17... Nxe3 {[%clk 0:00:22.5]} 18. fxe3
{[%clk 0:02:14.2]} 18... Be6 {[%clk 0:00:17]} 19. Qb5+ {[%clk 0:02:08.8]} 19...
Ke7 {[%clk 0:00:12.7]} 20. Nxb6 {[%clk 0:02:08.1]} 20... Qc7 {[%clk 0:00:08]}
21. Nd5+ {[%clk 0:02:06]} 21... Bxd5 {[%clk 0:00:07.4]} 22. exd5 {[%clk
0:02:06.3]} 22... Rb8 {[%clk 0:00:07.8]} 23. Qa6 {[%clk 0:01:50.4]} 23... Rb6
{[%clk 0:00:04.7]} 24. Qa3 {[%clk 0:01:49.6]} 24... f5 {[%clk 0:00:03.9]} 25. e4
{[%clk 0:01:44.8]} 25... f4 {[%clk 0:00:01.9]} 26. Nd2 {[%clk 0:01:42.6]} 26...
g5 {[%clk 0:00:01.3]} 27. Nc4 {[%clk 0:01:41.8]} 27... g4 {[%clk 0:00:01.3]} 28.
Nxb6 {[%clk 0:01:32.9]} 28... Qxb6 {[%clk 0:00:02.2]} 29. Qb3 {[%clk 0:01:30.6]}
29... c4+ {[%clk 0:00:01.7]} 30. Qxb6 {[%clk 0:01:30.6]} 1-0

[Event "*** Titled Tuesday Blitz"]
[Site "Chess.com"]
[Date "2020.10.27"]
[Round "6"]
[White "Ranindu2003"]
[Black "Nemsko"]
[Result "1-0"]
[WhiteElo "2552"]
[BlackElo "2347"]
[TimeControl "180+1"]
[EndTime "11:05:35 PDT"]
[Termination "Ranindu2003 won by resignation"]

1. e4 {[%clk 0:02:59.6]} 1... e5 {[%clk 0:02:59]} 2. Nf3 {[%clk 0:02:59.5]} 2...
Nc6 {[%clk 0:02:58.9]} 3. Bc4 {[%clk 0:02:59.5]} 3... Bc5 {[%clk 0:02:58.2]} 4.
c3 {[%clk 0:02:59.8]} 4... Nf6 {[%clk 0:02:58]} 5. d3 {[%clk 0:03:00.3]} 5... a6
{[%clk 0:02:58.1]} 6. h3 {[%clk 0:03:00.1]} 6... Ba7 {[%clk 0:02:58.4]} 7. Bb3
{[%clk 0:03:00.5]} 7... O-O {[%clk 0:02:56.7]} 8. Bg5 {[%clk 0:02:59.4]} 8... h6
{[%clk 0:02:56.4]} 9. Bh4 {[%clk 0:02:59.1]} 9... d6 {[%clk 0:02:52.6]} 10. Nbd2
{[%clk 0:02:55.7]} 10... Be6 {[%clk 0:02:53.2]} 11. Nf1 {[%clk 0:02:51.3]} 11...
Kh8 {[%clk 0:02:48.8]} 12. Ng3 {[%clk 0:02:46.3]} 12... Rg8 {[%clk 0:02:35.3]}
13. Qd2 {[%clk 0:01:45.8]} 13... Nb8 {[%clk 0:02:08.1]} 14. Nf5 {[%clk
0:01:15.7]} 14... Kh7 {[%clk 0:01:43.2]} 15. g4 {[%clk 0:01:08.9]} 15... Bxb3
{[%clk 0:01:33.5]} 16. axb3 {[%clk 0:01:06.9]} 16... g5 {[%clk 0:01:32.8]} 17.
Bxg5 {[%clk 0:00:48.8]} 17... hxg5 {[%clk 0:01:10.4]} 18. Nxg5+ {[%clk
0:00:49.7]} 18... Kg6 {[%clk 0:01:03]} 19. Nf3 {[%clk 0:00:49.6]} 19... Nxg4
{[%clk 0:00:26.4]} 20. hxg4 {[%clk 0:00:47.1]} 20... Kf6 {[%clk 0:00:26.8]} 21.
Rh6+ {[%clk 0:00:44.4]} 1-0

[Event "*** Titled Tuesday Blitz"]
[Site "Chess.com"]
[Date "2020.10.27"]
[Round "6"]
[White "picturesquecheck"]
[Black "kai_nov"]
[Result "1-0"]
[WhiteElo "2095"]
[BlackElo "2288"]
[TimeControl "180+1"]
[EndTime "11:05:42 PDT"]
[Termination "picturesquecheck won on time"]

1. e4 {[%clk 0:03:00.9]} 1... c5 {[%clk 0:02:57.8]} 2. Nf3 {[%clk 0:02:58.7]}
2... Nc6 {[%clk 0:02:56.9]} 3. d4 {[%clk 0:02:58.4]} 3... cxd4 {[%clk
0:02:56.5]} 4. Nxd4 {[%clk 0:02:59.2]} 4... Nf6 {[%clk 0:02:56.2]} 5. Nc3 {[%clk
0:02:59]} 5... e5 {[%clk 0:02:56.4]} 6. Ndb5 {[%clk 0:02:58.5]} 6... d6 {[%clk
0:02:56.1]} 7. Bg5 {[%clk 0:02:57.3]} 7... a6 {[%clk 0:02:53.2]} 8. Na3 {[%clk
0:02:57.2]} 8... b5 {[%clk 0:02:53.1]} 9. Nd5 {[%clk 0:02:57.1]} 9... Be7 {[%clk
0:02:52.4]} 10. Bxf6 {[%clk 0:02:56.7]} 10... Bxf6 {[%clk 0:02:50.3]} 11. c3
{[%clk 0:02:57.6]} 11... O-O {[%clk 0:02:49.3]} 12. Nc2 {[%clk 0:02:56.1]} 12...
Bg5 {[%clk 0:02:47.8]} 13. a4 {[%clk 0:02:54]} 13... bxa4 {[%clk 0:02:45.5]} 14.
Rxa4 {[%clk 0:02:52.9]} 14... a5 {[%clk 0:02:37.9]} 15. Bc4 {[%clk 0:02:51]}
15... Rb8 {[%clk 0:02:33.7]} 16. b3 {[%clk 0:02:50]} 16... Kh8 {[%clk
0:02:19.5]} 17. O-O {[%clk 0:02:48.5]} 17... f5 {[%clk 0:02:13.5]} 18. exf5
{[%clk 0:02:47.8]} 18... Bxf5 {[%clk 0:02:12.5]} 19. Nce3 {[%clk 0:02:47.8]}
19... Be6 {[%clk 0:02:05.2]} 20. Qd3 {[%clk 0:02:46.7]} 20... Qd7 {[%clk
0:01:59.6]} 21. Rfa1 {[%clk 0:02:45.5]} 21... Qf7 {[%clk 0:01:55.2]} 22. f3
{[%clk 0:02:41.2]} 22... Qa7 {[%clk 0:01:23.6]} 23. Kh1 {[%clk 0:02:36.9]} 23...
Qc5 {[%clk 0:01:13.6]} 24. Re1 {[%clk 0:02:13.8]} 24... h6 {[%clk 0:00:58.8]}
25. Nc7 {[%clk 0:02:04.2]} 25... Bxc4 {[%clk 0:00:55.1]} 26. Rxc4 {[%clk
0:02:03.4]} 26... Qa7 {[%clk 0:00:38.5]} 27. Ne6 {[%clk 0:02:02.5]} 27... Rfc8
{[%clk 0:00:19.6]} 28. Nxg5 {[%clk 0:02:00.8]} 28... hxg5 {[%clk 0:00:18.8]} 29.
Qg6 {[%clk 0:01:58]} 29... Rxb3 {[%clk 0:00:16.8]} 30. Nf5 {[%clk 0:01:53.3]}
30... Rb7 {[%clk 0:00:08.5]} 31. Qh5+ {[%clk 0:01:52]} 31... Kg8 {[%clk
0:00:08.1]} 32. Rxc6 {[%clk 0:01:50.8]} 32... Rxc6 {[%clk 0:00:04.7]} 33. Qe8+
{[%clk 0:01:50.6]} 33... Kh7 {[%clk 0:00:04.7]} 34. Qxc6 {[%clk 0:01:50.1]}
34... Qf2 {[%clk 0:00:03.1]} 35. Rg1 {[%clk 0:01:48.1]} 35... Rb2 {[%clk
0:00:02.7]} 36. Qe4 {[%clk 0:01:44.4]} 36... Kh8 {[%clk 0:00:01.9]} 37. Nxd6
{[%clk 0:01:43.6]} 1-0